bitfinex-derivatives/quotes_ETHF0:USTF0_20250404
["timestamp","ask_amount","ask_price","bid_price","bid_amount"]
[1743799934396,1.8582,1818.7,1818.6,1.96347079]
[1743799936701,2.4086,1818.7,1818.6,1.96347079]
[1743799936890,5.6164,1818.7,1818.6,1.96369399]
[1743799937086,5.6164,1818.7,1818.6,1.96371106]
[1743799937286,5.6164,1818.7,1818.6,1.96369888]
[1743799938998,5.6164,1818.7,1818.6,1.96397286]
[1743799939701,5.6164,1818.7,1818.6,1.4304]
[1743799940097,5.6164,1818.7,1818.6,1.96407782]
[1743799940800,5.6164,1818.7,1818.6,1.96401361]
[1743799942398,3.7582,1818.9,1818.6,3.06417361]
[1743799942700,3.2078,1819.1,1819.0,1.09992]
[1743799942895,3.2078,1819.1,1819.0,2.4389923]
[1743799943399,3.2078,1819.1,1819.0,2.43879663]
[1743799943803,3.2078,1819.1,1819.0,3.17470901]
[1743799944303,4.30766,1819.1,1819.0,1.26941939]
[1743799944600,6.51926,1819.1,1819.0,0.73591238]
[1743799944902,4.30766,1819.1,1819.0,0.53303827]
[1743799945600,3.2078,1819.1,1819.0,0.53303827]
[1743799945801,4.30766,1819.1,1819.0,0.53303827]
[1743799946296,4.30766,1819.1,1819.0,0.53300988]
[1743799946698,4.30766,1819.1,1818.9,1.83156]
[1743799946699,1.09992,1819.0,1818.9,0.7316]
[1743799946995,5.8361,1819.1,1818.9,1.26465415]
[1743799947197,5.8361,1819.1,1818.9,1.83158]
[1743799948803,1.09992,1819.0,1818.9,1.83158]
[1743799948994,1.09992,1819.0,1818.9,2.36449821]
[1743799949494,5.83611,1819.1,1818.9,2.36449821]
[1743799949690,5.83611,1819.1,1818.9,1.83158]
[1743799949896,1.09992,1819.0,1818.9,1.83158]
[1743799950092,1.09992,1819.0,1818.9,2.36437553]
[1743799950403,5.83611,1819.1,1818.9,2.36437553]
[1743799950703,1.09992,1819.0,1818.9,0.7316]
[1743799950903,1.09992,1819.0,1818.9,1.26452307]
[1743799951302,1.09992,1819.0,1818.9,2.36450307]
[1743799951699,1.09992,1819.0,1818.9,1.26452307]
[1743799952707,5.83611,1819.1,1818.9,2.36450307]
[1743799953005,1.09992,1819.0,1818.9,1.83158]
[1743799953206,1.09992,1819.0,1818.9,1.26446816]
[1743799953405,4.7362,1819.1,1818.9,2.36444816]
[1743799953606,4.7362,1819.1,1818.9,1.83158]
[1743799953806,5.83611,1819.1,1818.9,1.83158]
[1743799954009,4.7362,1819.1,1818.9,0.7316]
[1743799954308,1.09992,1819.0,1818.9,0.7316]
[1743799954603,4.7362,1819.1,1818.9,1.2644363]
[1743799954810,1.09992,1819.0,1818.9,0.7316]
[1743799955003,1.09992,1819.0,1818.9,1.26443951]
[1743799955807,4.7362,1819.1,1818.8,1.10001]
[1743799956010,1.09998,1818.9,1818.8,1.10001]
[1743799956310,3.599,1818.9,1818.8,1.63288299]
[1743799956707,5.24938,1818.9,1818.8,1.63288299]
[1743799957106,4.1494,1818.9,1818.8,1.63288299]
[1743799957410,4.1494,1818.9,1818.8,1.63285352]
[1743799957808,5.24938,1818.9,1818.8,1.6328459]
[1743799958212,5.24938,1818.9,1818.8,0.5328359]
[1743799958508,1.10004,1818.8,1818.7,0.752]
[1743799958715,1.10004,1818.8,1818.7,1.28484866]
[1743799959213,1.10004,1818.8,1818.7,1.28479545]
[1743799959410,5.24944,1818.9,1818.7,2.38483545]
[1743799959617,5.24944,1818.9,1818.8,0.53279545]
[1743799959910,5.24944,1818.9,1818.8,2.06829545]
[1743799960513,5.24944,1818.9,1818.8,1.5355]
[1743799960714,5.24944,1818.9,1818.8,2.06823254]
[1743799961214,5.24944,1818.9,1818.8,2.06822118]
[1743799961516,5.24944,1818.9,1818.8,2.06825174]
[1743799961813,5.24944,1818.9,1818.8,2.06831311]
[1743799962011,5.24944,1818.9,1818.8,2.06830751]
[1743799962212,5.24944,1818.9,1818.8,2.06824486]
[1743799962408,5.24944,1818.9,1818.8,2.06823815]
[1743799962606,5.24944,1818.9,1818.8,2.06824311]
[1743799962806,5.24944,1818.9,1818.8,2.06824329]
[1743799963015,5.24944,1818.9,1818.8,2.06824372]
[1743799963222,5.24944,1818.9,1818.8,3.16833062]
[1743799963610,5.24938,1818.9,1818.8,2.63554]
[1743799963810,5.24938,1818.9,1818.8,3.16830223]
[1743799964114,5.24938,1818.9,1818.8,2.06826615]
[1743799964315,4.1494,1818.9,1818.8,3.16830615]
[1743799965617,5.24938,1818.9,1818.8,3.16830615]
[1743799965816,5.24938,1818.9,1818.8,2.06826615]
[1743799966005,5.24938,1818.9,1818.8,2.0680598]
[1743799966207,5.24938,1818.9,1818.8,1.5355]
[1743799966412,5.97378,1818.9,1818.8,1.5355]
[1743799966605,5.97378,1818.9,1818.8,2.06820506]
[1743799966810,1.1001,1818.7,1818.6,0.7698]
[1743799967010,1.1001,1818.7,1818.6,2.05620125]
[1743799967220,4.3079,1818.7,1818.6,2.05620125]
[1743799967517,1.10022,1818.5,1818.4,1.4541]
[1743799967718,3.598,1818.5,1818.4,4.61073728]
[1743799967917,4.69822,1818.5,1818.4,4.61067713]
[1743799968119,4.69822,1818.5,1818.4,3.51044713]
[1743799968314,4.69822,1818.5,1818.4,2.9775]
[1743799968520,4.69822,1818.5,1818.4,3.51046919]
[1743799968816,4.69822,1818.5,1818.4,3.51049699]
[1743799969320,4.69822,1818.5,1818.4,3.51050863]
[1743799969516,4.69822,1818.5,1818.4,3.51051352]
[1743799969915,9.38052,1818.5,1818.4,2.05641352]
[1743799970920,9.38052,1818.5,1818.4,2.05642493]
[1743799971324,9.38052,1818.5,1818.4,2.0563356]
[1743799972325,7.90602,1818.5,1818.4,2.0563356]
[1743799973025,7.90602,1818.5,1818.4,2.05621677]
[1743799973226,4.69822,1818.5,1818.4,2.05621677]
[1743799974125,7.90602,1818.5,1818.4,2.05621677]
[1743799974327,3.598,1818.5,1818.4,2.05621677]
[1743799974524,4.69822,1818.5,1818.4,2.05621677]
[1743799976117,4.69822,1818.5,1818.4,3.15649677]
[1743799976721,5.24862,1818.5,1818.4,3.15649677]
[1743799977524,5.24862,1818.5,1818.4,2.05621677]
[1743799977916,7.3562,1818.5,1818.3,0.00824605]
[1743799978120,1.10028,1818.4,1818.3,0.00824605]
[1743799978319,1.10028,1818.4,1818.3,1.50314605]
[1743799979023,1.10028,1818.4,1818.3,2.03526858]
[1743799979227,1.10028,1818.4,1818.3,2.03521953]
[1743799979427,1.10028,1818.4,1818.3,3.13555953]
[1743799979727,1.10028,1818.4,1818.3,2.03521953]
[1743799981029,0.5504,1818.5,1818.3,2.03521953]
[1743799981325,3.2078,1818.7,1818.6,1.10016]
[1743799981520,6.8058,1818.7,1818.6,1.6320295]
[1743799981718,6.8058,1818.7,1818.6,1.63199067]
[1743799982123,6.8058,1818.7,1818.6,3.05969067]
[1743799982320,3.598,1818.7,1818.6,3.05969067]
[1743799982524,1.65035,1819.0,1818.6,9.57099173]
[1743799982829,1.65035,1819.0,1818.7,3.86301733]
[1743799982830,3.598,1818.8,1818.7,3.86301733]
[1743799983018,3.598,1818.8,1818.7,44.66301733]
[1743799983222,3.598,1818.8,1818.7,45.39706063]
[1743799984927,1.09999,1818.9,1818.8,1.10004]
[1743799985133,3.598,1818.9,1818.8,4.64774779]
[1743799985334,3.598,1818.9,1818.8,4.6474784]
[1743799987533,4.69798,1818.9,1818.8,4.6474784]
[1743799987736,3.598,1818.9,1818.8,4.6474784]
[1743799987935,3.598,1818.9,1818.8,5.4029784]
[1743799988332,4.69798,1818.9,1818.8,5.4029784]
[1743799988533,3.598,1818.9,1818.8,5.4029784]
[1743799988733,3.598,1818.9,1818.8,6.13562858]
[1743799989033,3.598,1818.9,1818.8,5.40231272]
[1743799990639,3.598,1818.9,1818.8,8.61011272]
[1743799991842,4.69798,1818.9,1818.8,8.61011272]
[1743799992137,3.598,1818.9,1818.8,8.61011272]
[1743799992834,3.598,1818.9,1818.8,8.6095083]
[1743799993036,3.598,1818.9,1818.8,8.60949332]
[1743799994745,4.69798,1818.9,1818.8,8.60949332]
[1743799994945,3.598,1818.9,1818.8,8.60949332]
[1743799995343,3.2078,1819.3,1819.2,1.0998]
[1743799995543,0.00824605,1819.4,1819.3,1.09974]
[1743799995846,0.00824605,1819.4,1819.3,42.43027995]
[1743799996045,3.60524605,1819.4,1819.3,43.93587995]
[1743799996341,0.00824605,1819.4,1819.3,44.73730023]
[1743799996537,0.00824605,1819.4,1819.3,43.93587995]
[1743799997138,0.00824605,1819.4,1819.3,44.7368475]
[1743799997347,34.662,1819.6,1819.5,1.09962]
[1743799997547,34.662,1819.6,1819.5,1.63015995]
[1743799998047,4.69548,1819.8,1819.7,1.09949]
[1743799998749,4.69548,1819.8,1819.7,1.79689]
[1743799999851,4.69548,1819.8,1819.7,0.6974]
[1743800000248,4.69548,1819.8,1819.7,2.2126]
[1743800001152,4.69548,1819.8,1819.7,3.31209]
[1743800001450,4.69548,1819.8,1819.7,2.2126]
[1743800001639,4.69548,1819.8,1819.7,3.31209]
[1743800002044,3.596,1819.8,1819.7,3.31209]
[1743800010153,0.00824605,1819.9,1819.8,1.09943]
[1743800010460,3.60324605,1819.9,1819.8,3.79795985]
[1743800010652,3.60324605,1819.9,1819.8,7.00575985]
[1743800010858,0.00824605,1819.9,1819.8,7.00575985]
[1743800011054,0.00824605,1819.9,1819.8,7.00548423]
[1743800012855,35.75825,1820.2,1820.1,1.09925]
[1743800013057,38.254,1820.2,1820.1,1.09925]
[1743800013252,39.35319,1820.2,1820.1,1.09925]
[1743800013454,38.254,1820.2,1820.1,1.09925]
[1743800013656,39.35319,1820.2,1820.1,2.53295]
[1743800013961,38.254,1820.2,1820.1,2.53295]
[1743800014156,0.00824604,1820.3,1820.2,1.09919]
[1743800014363,0.00824604,1820.3,1820.2,5.04169]
[1743800014659,0.00824604,1820.3,1820.2,5.57050117]
[1743800020057,1.64855,1820.6,1820.2,5.57050117]
[1743800020058,3.82303,1820.7,1820.3,2.74773]
[1743800020259,3.593,1820.6,1820.5,1.09901]
[1743800022682,4.69195,1820.6,1820.5,1.09901]
[1743800023074,5.0133,1820.6,1820.5,1.09901]
[1743800023882,3.593,1820.6,1820.5,1.09901]
[1743800025275,3.81893,1820.7,1820.5,1.09901]
[1743800025276,3.2078,1821.2,1820.5,3.82740779]
[1743800025575,3.593,1821.1,1821.0,1.09871]
[1743800025780,3.79915,1821.3,1821.2,1.09859]
[1743800025972,2.7006,1821.3,1821.2,1.09859]
[1743800026178,0.7307,1821.3,1821.2,1.09859]
[1743800026381,6.8008,1821.4,1821.3,1.09853]
[1743800031280,3.2078,1821.4,1821.3,1.09853]
[1743800031485,6.7998,1821.4,1821.3,1.09853]
[1743800033980,6.7998,1821.4,1821.3,2.58543]
[1743800036092,7.89827,1821.4,1821.3,2.58543]
[1743800036788,6.7998,1821.4,1821.3,2.58543]
[1743800037289,4.69047,1821.4,1821.3,1.4869]
[1743800037489,4.69047,1821.4,1821.3,2.58543]
[1743800038389,3.592,1821.4,1821.3,2.58543]
[1743800038592,4.69047,1821.4,1821.3,2.58543]
[1743800038792,4.69047,1821.4,1821.3,1.4869]
[1743800038995,1.09858,1821.3,1821.1,1.84551]
[1743800039192,2.58138,1821.3,1821.1,3.35011]
[1743800039493,2.58138,1821.3,1821.2,2.60319]
[1743800039494,1.4828,1821.3,1821.2,2.60319]
[1743800039689,1.4828,1821.3,1821.0,44.0078]
[1743800039994,1.56744,1821.2,1821.0,46.6111]
[1743800040691,3.591,1821.1,1821.0,43.4033]
[1743800040892,5.8399,1821.1,1821.0,43.93144676]
[1743800041092,5.8399,1821.1,1821.0,43.4033]
[1743800041394,5.8399,1821.1,1821.0,43.93165801]
[1743800041595,4.3609,1821.1,1821.0,44.73013196]
[1743800041794,4.3609,1821.1,1821.0,44.73011232]
[1743800043396,3.591,1821.1,1821.0,44.73011232]
[1743800045296,3.32068,1821.3,1821.0,44.3616078]
[1743800045499,3.59,1821.2,1821.1,3.86942847]
[1743800045797,1.09858,1821.3,1821.2,1.09859]
[1743800045997,4.68858,1821.3,1821.2,3.79886783]
[1743800046991,4.68858,1821.3,1821.2,2.70027783]
[1743800047299,4.68858,1821.3,1821.2,2.70028995]
[1743800047998,4.68858,1821.3,1821.2,3.79887995]
[1743800048601,4.68858,1821.3,1821.2,3.79913248]
[1743800049395,3.59,1821.3,1821.2,3.79913248]
[1743800050500,3.59,1821.3,1821.2,4.59941182]
[1743800050998,3.59,1821.3,1821.2,4.59941157]
[1743800052905,3.59,1821.3,1821.2,4.60034452]
[1743800053603,3.59,1821.3,1821.2,5.33270562]
[1743800054598,3.59,1821.3,1821.2,5.33483009]
[1743800054806,3.59,1821.3,1821.2,5.33563829]
[1743800055799,4.68853,1821.3,1821.2,5.33563829]
[1743800056207,3.59,1821.3,1821.2,5.33563829]
[1743800056503,3.59,1821.3,1821.2,4.80475466]
[1743800056706,3.59,1821.3,1821.2,5.33581578]
[1743800058407,3.59,1821.3,1821.2,5.32852545]
[1743800058900,3.59,1821.3,1821.2,5.32851074]
[1743800059407,3.59,1821.3,1821.2,8.53631074]
[1743800062101,3.59,1821.3,1821.2,8.53621274]
[1743800064007,3.59,1821.3,1821.2,8.53636452]
[1743800065111,3.76702598,1821.6,1821.5,1.09841]
[1743800065306,0.00962598,1821.6,1821.5,1.62950978]
[1743800065506,3.59862598,1821.6,1821.5,2.42429395]
[1743800065706,3.59862598,1821.6,1821.5,3.29811]
[1743800066011,3.59862598,1821.6,1821.5,5.35658319]
[1743800069104,0.00962598,1821.6,1821.5,5.35658319]
[1743800069311,5.23676,1822.0,1821.9,1.09817]
[1743800069609,1.09823,1821.9,1821.8,1.09818]
[1743800069912,1.09823,1821.9,1821.8,1.63648087]
[1743800070407,2.54843,1821.9,1821.8,1.63648087]
[1743800070607,5.0392,1821.9,1821.8,1.63648087]
[1743800071714,6.13737,1821.9,1821.8,1.63648087]
[1743800072115,6.13737,1821.9,1821.8,1.63619212]
[1743800073114,6.13737,1821.9,1821.8,1.63609753]
[1743800074116,6.13737,1821.9,1821.8,0.00824605]
[1743800074709,5.0392,1821.9,1821.8,1.10647605]
[1743800074909,6.13737,1821.9,1821.8,1.10647605]
[1743800076816,6.68697,1821.9,1821.8,0.00824605]
[1743800077015,6.68697,1821.9,1821.8,1.10647605]
[1743800077214,6.68697,1821.9,1821.8,0.00824605]
[1743800078918,6.68697,1821.9,1821.8,1.10647605]
[1743800079516,5.23677,1821.9,1821.8,1.10647605]
[1743800080218,5.23677,1821.9,1821.8,1.85847605]
[1743800081917,5.23677,1821.9,1821.8,2.38783738]
[1743800082816,5.23677,1821.9,1821.8,1.85847605]
[1743800083121,5.23677,1821.9,1821.8,2.38789519]
[1743800085217,5.23677,1821.9,1821.8,2.38797498]
[1743800087411,5.23677,1821.9,1821.8,2.38801625]
[1743800090925,5.23677,1821.9,1821.8,2.38836937]
[1743800094127,5.23677,1821.9,1821.8,2.38875344]
[1743800096031,4.68717,1821.9,1821.8,2.38875344]
[1743800096524,4.68717,1821.9,1821.8,2.3892875]
[1743800096730,5.23677,1821.9,1821.8,2.3892875]
[1743800096924,5.23677,1821.9,1821.8,1.6372875]
[1743800098334,5.23677,1821.9,1821.8,1.6373508]
[1743800098726,5.23677,1821.9,1821.8,0.5391208]
[1743800099133,5.23677,1821.9,1821.8,1.6373508]
[1743800100134,5.23677,1821.9,1821.8,2.3345508]
[1743800100633,4.1386,1821.9,1821.8,3.12939538]
[1743800100935,5.23677,1821.9,1821.8,4.52749538]
[1743800101132,1.09817,1821.9,1821.8,4.52749538]
[1743800101330,1.09817,1821.9,1821.8,5.26069725]
[1743800102833,1.09817,1821.9,1821.8,5.28409968]
[1743800103235,1.09817,1821.9,1821.8,5.28415646]
[1743800103437,5.23372,1822.0,1821.9,1.09817]
[1743800103635,5.23372,1822.0,1821.9,3.92024854]
[1743800103934,5.23372,1822.0,1821.9,2.82207854]
[1743800104332,0.5496,1822.0,1821.9,2.82207854]
[1743800104537,4.1356,1822.1,1822.0,1.09811]
[1743800104742,3.586,1822.3,1822.2,1.09799]
[1743800104941,3.586,1822.3,1822.2,2.44716854]
[1743800105138,36.26046,1822.5,1822.3,1.0979]
[1743800105331,35.1626,1822.5,1822.4,3.08365651]
[1743800105533,38.199,1822.5,1822.4,3.84495651]
[1743800105834,38.199,1822.5,1822.4,4.66194974]
[1743800106237,38.199,1822.5,1822.4,3.84495651]
[1743800106832,39.29681,1822.5,1822.4,4.66042637]
[1743800107233,38.199,1822.5,1822.4,4.66042637]
[1743800107538,34.613,1822.5,1822.4,3.84428754]
[1743800108237,35.71081,1822.5,1822.4,3.84428754]
[1743800109535,1.09781,1822.5,1822.4,3.84428754]
[1743800109742,4.68378,1822.6,1822.4,3.84428754]
[1743800109942,4.68378,1822.6,1822.5,1.5277]
[1743800110940,4.68378,1822.6,1822.5,2.62551]
[1743800112841,1.09778,1822.6,1822.5,2.62551]
[1743800113235,4.604,1822.8,1822.7,1.09769]
[1743800113440,3.585,1822.8,1822.7,1.09769]
[1743800113942,3.585,1822.8,1822.7,3.23499]
[1743800114138,3.585,1822.8,1822.7,3.7626528]
[1743800114340,4.68263,1822.8,1822.7,3.23499]
[1743800114642,4.68258,1822.9,1822.8,1.09763]
[1743800115038,1.09763,1822.8,1822.7,1.81129605]
[1743800115347,4.85423001,1822.8,1822.7,0.00824605]
[1743800115544,6.29243001,1822.8,1822.7,0.00824605]
[1743800116042,1.09763,1822.8,1822.7,1.10593605]
[1743800116643,1.09763,1822.8,1822.7,0.00824605]
[1743800116847,1.09763,1822.8,1822.7,0.73684605]
[1743800119848,1.09763,1822.8,1822.7,1.83453605]
[1743800120347,1.09763,1822.8,1822.7,0.73684605]
[1743800121450,1.09763,1822.8,1822.7,1.83453605]
[1743800121753,1.09763,1822.8,1822.7,0.73684605]
[1743800122352,1.09763,1822.8,1822.7,1.83453605]
[1743800122547,1.09763,1822.8,1822.7,0.73684605]
[1743800123553,1.09763,1822.8,1822.7,1.83453605]
[1743800123751,1.09763,1822.8,1822.7,0.73684605]
[1743800123954,1.09763,1822.8,1822.7,1.83453605]
[1743800125546,1.0976,1822.9,1822.8,1.09763]
[1743800125747,4.6816,1822.9,1822.8,1.82123]
[1743800125951,3.584,1822.9,1822.8,1.82123]
[1743800126347,35.69946,1823.1,1822.8,1.25057191]
[1743800126649,6.69587,1823.4,1823.1,1.09739]
[1743800126650,3.584,1823.2,1823.1,1.09739]
[1743800127954,3.2078,1823.6,1823.1,5.77014443]
[1743800128147,4.30495,1823.6,1823.2,3.97462653]
[1743800128347,1.09715,1823.6,1823.4,1.09724]
[1743800128553,1.09723,1823.5,1823.3,41.89727]
[1743800128752,1.09719,1823.6,1823.4,1.09726]
[1743800129048,38.176,1823.7,1823.4,1.09726]
[1743800129253,39.6831,1823.7,1823.4,1.09726]
[1743800129456,1.09718,1823.6,1823.4,1.09726]
[1743800129954,1.09718,1823.6,1823.5,1.4779]
[1743800136354,1.09718,1823.6,1823.5,2.5751]
[1743800136861,1.09718,1823.6,1823.5,1.4779]
[1743800140757,4.30498,1823.6,1823.5,1.4779]
[1743800140957,5.71138,1823.6,1823.5,1.4779]
[1743800145459,1.09732,1823.3,1823.2,41.5047]
[1743800145775,1.09738,1823.2,1823.1,0.7657]
[1743800145962,1.09738,1823.2,1823.1,3.33404]
[1743800146169,1.09738,1823.2,1823.1,44.13404]
[1743800146673,6.09507,1823.3,1823.2,1.09738]
[1743800146870,6.09507,1823.3,1823.2,2.56828]
[1743800147178,4.67837,1823.3,1823.2,2.56828]
[1743800147378,4.30512,1823.4,1823.3,1.09732]
[1743800147571,7.88612,1823.4,1823.3,2.62502]
[1743800147774,4.67832,1823.4,1823.3,2.62502]
[1743800148070,4.67832,1823.4,1823.3,1.5277]
[1743800148270,4.67832,1823.4,1823.3,2.62502]
[1743800149081,3.581,1823.4,1823.3,2.62502]
[1743800149376,1.09718,1823.6,1823.5,1.0972]
[1743800149575,4.67818,1823.6,1823.5,1.0972]
[1743800149882,4.67814,1823.6,1823.5,1.0972]
[1743800150068,4.67814,1823.6,1823.5,2.6249]
[1743800151479,3.2078,1824.0,1823.5,4.55487783]
[1743800151676,4.67796,1823.9,1823.8,1.09697]
[1743800151875,1.09708,1823.7,1823.6,0.00824605]
[1743800152278,4.67808,1823.7,1823.6,0.00824605]
[1743800152674,4.67808,1823.7,1823.6,2.57748605]
[1743800152874,4.67808,1823.7,1823.6,1.48034605]
[1743800153478,6.10898,1823.7,1823.6,0.00824605]
[1743800156277,6.65778001,1823.7,1823.6,0.00824605]
[1743800163786,1.09732,1823.3,1823.2,2.2338]
[1743800163986,4.67732,1823.3,1823.2,4.67292368]
[1743800164295,4.67732,1823.3,1823.2,2.7628879]
[1743800165185,4.67732,1823.3,1823.2,2.2338]
[1743800165891,6.08552,1823.3,1823.2,2.2338]
[1743800166483,3.58,1823.3,1823.2,4.66040054]
[1743800166792,0.00824605,1823.4,1823.3,1.09732]
[1743800166988,0.00824605,1823.4,1823.3,7.03584054]
[1743800167188,0.00824605,1823.4,1823.3,7.76524412]
[1743800167890,0.00824605,1823.4,1823.3,4.55744412]
[1743800168895,0.00824605,1823.4,1823.3,4.55749718]
[1743800171294,3.2078,1823.8,1823.4,2.74309]
[1743800171495,3.58,1823.6,1823.5,4.22974058]
[1743800171698,4.67718,1823.6,1823.5,4.52701647]
[1743800172992,4.67718,1823.6,1823.5,4.52691521]
[1743800173900,3.58,1823.6,1823.5,4.52691521]
[1743800174390,3.58,1823.6,1823.5,3.99845]
[1743800174589,3.58,1823.6,1823.5,4.52690763]
[1743800175198,4.67714,1823.6,1823.5,4.52689519]
[1743800175497,3.58,1823.6,1823.5,4.52689519]
[1743800175795,4.67714,1823.6,1823.5,4.52689519]
[1743800176100,3.58,1823.6,1823.5,4.52689519]
[1743800177595,4.67714,1823.6,1823.5,4.52689519]
[1743800178198,4.67714,1823.6,1823.5,4.52702474]
[1743800178799,4.67714,1823.6,1823.5,3.42987474]
[1743800179798,4.67714,1823.6,1823.5,4.52707474]
[1743800180602,4.67714,1823.6,1823.5,3.42995823]
[1743800180794,4.67714,1823.6,1823.5,4.52715823]
[1743800180994,4.67714,1823.6,1823.5,1.93995823]
[1743800181791,4.67714,1823.6,1823.5,1.4113]
[1743800182095,4.67714,1823.6,1823.5,1.93997353]
[1743800183101,6.17704,1823.6,1823.5,1.93997353]
[1743800183703,6.17704,1823.6,1823.5,1.93998183]
[1743800184499,9.38484,1823.6,1823.5,0.52868183]
[1743800184804,1.09726,1823.4,1823.3,2.2598]
[1743800185000,4.30506,1823.4,1823.3,2.78865205]
[1743800185202,6.57436,1823.4,1823.3,2.78865205]
[1743800186506,6.57436,1823.4,1823.3,2.06455205]
[1743800186706,6.57436,1823.4,1823.3,1.5357]
[1743800187405,1.09738,1823.2,1823.1,2.17614605]
[1743800187605,4.67638,1823.2,1823.1,2.70497824]
[1743800189302,4.67638,1823.2,1823.1,2.70483012]
[1743800189703,4.67638,1823.2,1823.1,1.98483012]
[1743800189907,6.07978,1823.2,1823.1,1.45614605]
[1743800191809,9.28758,1823.2,1823.1,1.45614605]
[1743800194517,4.30518,1823.2,1823.1,2.55358605]
[1743800194715,1.09728,1823.4,1823.1,4.48428215]
[1743800194910,4.67628,1823.4,1823.2,2.6816361]
[1743800195212,4.67628,1823.4,1823.3,42.2502]
[1743800195609,1.09738,1823.2,1823.1,1.45844605]
[1743800195807,1.09738,1823.2,1823.1,1.98657513]
[1743800196013,1.09738,1823.2,1823.1,1.45844605]
[1743800196213,1.09738,1823.2,1823.1,0.00824605]
[1743800196408,2.56098,1823.2,1823.1,0.00824605]
[1743800196609,5.06098,1823.2,1823.1,0.00824605]
[1743800197015,1.09769,1822.7,1822.5,1.09775]
[1743800197213,4.67669,1822.7,1822.6,1.24862262]
[1743800197415,4.67669,1822.7,1822.6,42.04862262]
[1743800198310,4.67669,1822.7,1822.6,43.43932262]
[1743800198716,4.67669,1822.7,1822.6,42.71922262]
[1743800198918,4.67669,1822.7,1822.6,42.1907]
[1743800199309,1.09775,1822.6,1822.5,0.00824605]
[1743800199517,1.09775,1822.6,1822.5,2.02859899]
[1743800199719,2.49715,1822.6,1822.5,1.50064605]
[1743800201213,1.09775,1822.6,1822.5,1.50064605]
[1743800203218,2.62555,1822.6,1822.5,1.50064605]
[1743800203420,2.62555,1822.6,1822.5,0.00824605]
[1743800203920,5.12555,1822.6,1822.5,0.00824605]
[1743800204119,5.67435001,1822.6,1822.5,0.00824605]
[1743800204419,5.67435001,1822.6,1821.9,3.2078]
[1743800204420,1.098,1822.2,1821.9,3.2078]
[1743800204619,1.09799,1822.3,1822.1,2.58562]
[1743800204814,3.58,1822.2,1822.1,2.58562]
[1743800205319,4.67799,1822.2,1822.1,43.38562]
[1743800205611,3.58,1822.2,1822.1,43.38562]
[1743800205819,4.67799,1822.2,1822.1,43.38562]
[1743800206121,3.58,1822.2,1822.1,44.12742]
[1743800206814,4.67799,1822.2,1822.1,44.12742]
[1743800207121,3.58,1822.2,1822.1,44.12742]
[1743800208119,3.58,1822.2,1822.1,47.33522]
[1743800208320,3.58,1822.2,1822.1,47.86207844]
[1743800208516,3.58,1822.2,1822.1,47.33522]
[1743800213219,4.67799,1822.2,1822.1,47.33522]
[1743800215025,3.58,1822.2,1822.1,47.33522]
[1743800215226,3.58,1822.2,1822.1,47.86281171]
[1743800216618,4.67799,1822.2,1822.1,47.86281171]
[1743800217016,3.58,1822.2,1822.1,47.86290841]
[1743800217722,4.67799,1822.2,1822.1,47.86290841]
[1743800217929,3.58,1822.2,1822.1,47.86290841]
[1743800218617,4.67799,1822.2,1822.1,44.12742]
[1743800218821,3.58,1822.2,1822.1,44.12742]
[1743800219221,3.58,1822.2,1822.1,44.65542599]
[1743800220721,4.67799,1822.2,1822.1,44.65542599]
[1743800221222,4.67799,1822.2,1822.1,3.32742]
[1743800221724,4.67799,1822.2,1822.1,44.12742]
[1743800222324,3.58,1822.2,1822.1,44.12742]
[1743800222528,4.67799,1822.2,1822.1,44.12742]
[1743800222928,3.58,1822.2,1822.1,44.12742]
[1743800223130,3.58,1822.2,1822.1,44.65561703]
[1743800224836,3.58,1822.2,1822.1,44.65564703]
[1743800225222,3.58,1822.2,1822.1,45.45631283]
[1743800225633,3.58,1822.2,1822.1,45.45735356]
[1743800226233,3.58,1822.2,1822.1,48.66515356]
[1743800227133,4.67799,1822.2,1822.1,48.66515356]
[1743800227334,3.58,1822.2,1822.1,48.66515356]
[1743800227536,3.58,1822.2,1822.1,48.6658962]
[1743800228430,3.58,1822.2,1822.1,7.85609425]
[1743800228629,4.67799,1822.2,1822.1,3.9162962]
[1743800229026,5.38349,1822.2,1822.1,3.9162962]
[1743800229226,6.88539,1822.2,1822.1,3.9162962]
[1743800229432,6.88539,1822.2,1822.1,3.91673539]
[1743800229622,5.7874,1822.2,1822.1,3.91673539]
[1743800229827,4.2855,1822.2,1822.1,3.91673539]
[1743800230334,5.38349,1822.2,1822.1,3.91673539]
[1743800230628,4.2855,1822.2,1822.1,3.91673539]
[1743800231035,3.58,1822.2,1822.1,3.91673539]
[1743800231223,3.58,1822.2,1822.1,4.64923536]
[1743800232134,3.58,1822.2,1822.1,4.64945559]
[1743800232436,3.31701,1822.4,1822.3,1.09793]
[1743800232632,6.89701,1822.4,1822.3,1.62846729]
[1743800233031,6.89701,1822.4,1822.3,3.06791426]
[1743800234433,6.89701,1822.4,1822.3,1.97013667]
[1743800234634,6.89701,1822.4,1822.3,0.53083667]
[1743800234934,1.09793,1822.3,1822.2,1.09795]
[1743800235132,5.80283,1822.3,1822.2,0.53093305]
[1743800235337,8.30283,1822.3,1822.2,0.45273884]
[1743800235535,1.09805,1822.1,1822.0,1.10635605]
[1743800235836,7.88585,1822.1,1822.0,0.00824605]
[1743800236040,7.88585,1822.1,1822.0,1.10635605]
[1743800236232,10.11335,1822.1,1822.0,1.10635605]
[1743800236437,10.11335,1822.1,1822.0,0.00824605]
[1743800237939,10.11335,1822.1,1822.0,1.10635605]
[1743800238133,10.11335,1822.1,1822.0,2.60285605]
[1743800238335,10.11335,1822.1,1822.0,1.50474605]
[1743800239843,10.66295,1822.1,1822.0,1.50474605]
[1743800243241,9.15535,1822.1,1822.0,2.60285605]
[1743800243443,8.43545,1822.1,1822.0,2.60285605]
[1743800243741,8.43545,1822.1,1822.0,1.50474605]